Cogmind - Beta 16 @@@ ROGUE MODE // 2025.11.28 @ 22:21:06 Player: justinkang1 Result: Destroyed by G-47 Trooper with Particle Gun Performance ------------- Evolutions (3) 1500 Regions Visited (6) 1200 Robots Destroyed (71) 355 Value Destroyed (1792) 1792 Prototype IDs (0) 0 Alien Tech Used (0) 0 Bonus (-53) -53 TOTAL SCORE: 4794 Bonus ------- Follower Combat Kills 112 Friendly Fire -165 Cogmind --------- Core Integrity 0/700 Matter 294/300 Energy 100/100 System Corruption 0% Temperature Cool (9) Movement Core (450) Ox8 Location -7/Factory Parts ------- > --- POWER (2) -------- (None) > --- PROPULSION (4) --- (None) > --- UTILITY (5) ------ Small Storage Unit Large Storage Unit > --- WEAPON (2) ------- (None) > --- INVENTORY (15) --- Compact Wheel High-powered Tractor Beam Lightning Gun Beam Rifle Field Laser Pulse Rifle Plasma Cannon Assault Cannon Peak State ------------ > --- POWER ------------ Light Ion Engine Light Ion Engine > --- PROPULSION ------- Aluminum Leg Aluminum Leg Carbon-fiber Leg Titanium Leg > --- UTILITY ---------- Large Storage Unit Compact Battery Reaction Control System Improved Utility Shielding Reflective Plating > --- WEAPON ----------- Lightning Gun Shock Bomb Launcher > --- INVENTORY -------- Aluminum Leg Compact Wheel Small Storage Unit Structural Scanner Hardlight Generator High-powered Tractor Beam Beam Rifle Field Laser Pulse Rifle Plasma Cannon Assault Cannon Ripper [Rating: 32] Favorites ----------- Power Light Ion Engine Engine Light Ion Engine Power Core Light Nuclear Core Propulsion Aluminum Leg Leg Aluminum Leg Utility Large Storage Unit Device Structural Scanner Storage Large Storage Unit Hackware Authchip [Storage] Protection Reflective Plating Weapon Small Laser Energy Gun Small Laser Ballistic Gun Light Assault Rifle Ballistic Cannon Assault Cannon Launcher Grenade Launcher Slashing Weapon Ripper Build | -11 -10 -10 -9 -9 -8 -7 ------- Run | Yrd Mat Min Mat Sto Mat Fac Slots Evolved 6 | . . . 2 . 2 2 Power 1 | . . . . . 1 . Propulsion 2 | . . . 1 . . 1 Utility 3 | . . . 1 . 1 1 Weapon . | . . . . . . . Parts Attached 59 | 6 4 7 2 16 20 4 Power 10 | 1 . 2 1 2 3 1 Engine 8 | 1 . 2 1 2 1 1 Core 2 | . . . . . 2 . Reactor . | . . . . . . . Propulsion 16 | 2 . 4 1 4 5 . Treads . | . . . . . . . Leg 16 | 2 . 4 1 4 5 . Wheel . | . . . . . . . Hover . | . . . . . . . Flight . | . . . . . . . Utility 15 | 1 2 . . 3 7 2 Device 8 | . 1 . . 1 5 1 Storage 3 | 1 1 . . . . 1 Processor . | . . . . . . . Hackware 1 | . . . . 1 . . Protection 3 | . . . . 1 2 . Artifact . | . . . . . . . Weapon 18 | 2 2 1 . 7 5 1 Energy Gun 7 | 1 2 . . 2 1 1 Energy Cannon . | . . . . . . . Ballistic Gun 4 | 1 . . . 2 1 . Ballistic Cannon 2 | . . . . . 2 . Launcher 4 | . . 1 . 2 1 . Special Weapon . | . . . . . . . Impact Weapon . | . . . . . . . Slashing Weapon 1 | . . . . 1 . . Piercing Weapon . | . . . . . . . Special Melee Weapon . | . . . . . . . Unidentified Prototypes . | . . . . . . . Parts Lost 37 | . 3 2 . 6 10 16 Power 8 | . 1 . . 2 3 2 Propulsion 10 | . . 1 . 2 2 5 Utility 11 | . . . . 1 4 6 Weapon 8 | . 2 1 . 1 1 3 Highest Loss Streak 12 | . 2 1 . 3 3 12 To Critical Strikes . | . . . . . . . Average Backups 10 | 1 6 10 12 10 13 11 Power . | . 1 1 1 1 . . Propulsion 3 | . 2 4 5 4 4 1 Utility 1 | . . 1 1 1 2 3 Weapon 4 | . 1 3 5 3 6 6 Tool/Special . | . . . . . . . Unused Backups 5 | . . . . . 1 4 Power . | . . . . . . . Propulsion 1 | . . . . . . 1 Utility 1 | . . . . . 1 . Weapon 3 | . . . . . . 3 Tool/Special . | . . . . . . . Average Slot Usage (%) 91 | . 92 98 67 87 90 84 Engine 11 | . 10 13 11 9 9 11 Core 1 | . . . . . 5 . Leg 26 | . 28 27 23 27 26 23 Device 11 | . 11 14 11 14 9 8 Storage 12 | . 14 14 11 11 9 15 Protection 4 | . . . . 4 11 10 Energy Gun 10 | . 17 16 . 6 3 2 Ballistic Gun 3 | . 9 . . 8 4 . Ballistic Cannon 1 | . . . . . 5 2 Launcher 5 | . . 10 11 2 3 5 Peak Build Rating 32 | 6 7 9 11 16 29 32 Average Rating 13 | 5 6 7 9 13 22 25 On Entrance 10 | . 6 6 9 11 15 25 Avg Prop Armor Cover (%) . | . . . . . . . Naked Turns . | . . . . . . . Heaviest Build 49 | 11 27 28 31 41 49 45 Greatest Support 52 | 20 20 25 35 38 42 52 Greatest Overweight (x) 9 | . 1 1 1 8 1 9 Average Overweight (x) . | . . 1 . . . . Largest Inventory Capacity 15 | 8 15 15 15 15 15 15 Average Capacity 14 | 7 13 15 15 15 15 15 Most Carried 15 | 3 9 13 13 13 15 14 Average Carried 10 | 1 6 10 12 10 13 11 Final Capacity 15 | 8 15 15 15 15 15 15 Final Carried 15 | 3 9 13 13 13 15 8 Class Distribution -------------------- 75% | Mutant 24% | Scavenger-Mutant Dominant Class ---------------- Mutant | -10/Materials Mutant | -10/Mines Mutant | -9/Materials Mutant | -9/Storage Scavenger-Mutant | -8/Materials Scavenger-Mutant | -7/Factory Resources | -11 -10 -10 -9 -9 -8 -7 ----------- Run | Yrd Mat Min Mat Sto Mat Fac Matter Collected 1512 | 260 47 118 . 447 593 47 Remotely 327 | . . . . . 327 . Salvage Created 2148 | . 207 246 . 606 714 375 Parts 122 | . 15 23 . 35 35 14 Haulers Intercepted 2 | . . . . 2 . . Recyclers Shooed 4 | . . . . 1 1 2 Parts Field Recycled . | . . . . . . . Retrieved Matter . | . . . . . . . Parts Self-Destructed . | . . . . . . . Prevented . | . . . . . . . Parts Restored . | . . . . . . . Kills | -11 -10 -10 -9 -9 -8 -7 ------- Run | Yrd Mat Min Mat Sto Mat Fac Combat Hostiles Destroyed 55 | . 6 14 . 11 19 5 Guns 28 | . 5 6 . 9 7 1 Cannons 6 | . . . . . 6 . AOE 21 | . 1 8 . 2 6 4 Classes Destroyed 10 | . 2 . . 6 1 1 Worker 3 | . . . . 1 1 1 Builder 5 | . . . . 2 2 1 Hauler 2 | . . . . 2 . . Recycler 3 | . . . . 2 1 . Watcher 2 | . . . . 1 1 . Swarmer 22 | . 2 9 . . 11 . Grunt 22 | . 4 5 . 6 4 3 Duelist 1 | . . . . . . 1 Sentry 8 | . . . . 5 3 . Hunter 2 | . . . . . 1 1 Thug 1 | . . . . 1 . . Best Kill Streak 8 | . 2 3 . 8 7 7 Combat Bots Only 5 | . 2 3 . 2 5 5 Max Kills in Single Turn 4 | . 1 3 . 4 2 2 Gunslinging 1 | . . 1 . 1 . . Exploded 3 | . 1 3 . 2 2 2 Melee . | . . . . . . . Uniques/NPCs Destroyed . | . . . . . . . Combat | -11 -10 -10 -9 -9 -8 -7 -------- Run | Yrd Mat Min Mat Sto Mat Fac Hostile Shots Fired 531 | . 44 55 . 96 159 177 Missed 155 | . 13 16 . 35 45 46 Hits 376 | . 31 39 . 61 114 131 Projectile 376 | . 31 39 . 61 114 131 AOE 1 | . . . . 1 . . Critical Strikes 5 | . . . . 3 . 2 Damage Taken 4976 | . 404 376 . 1255 1200 1741 Core 1373 | . 87 98 . 346 139 703 Absorbed by Shields 120 | . . . . . . 120 Redirected to Shielding 101 | . . . . . 40 61 Ignored by Resistances 20 | . . . . . 16 4 Core Remaining (%) 53 | 100 . 26 . 13 74 . Volleys Fired 142 | . 24 17 . 42 49 10 Largest 2 | . 2 2 . 2 2 2 Hottest 100 | . 60 80 . 85 100 91 Shots Fired 255 | . 37 32 . 77 94 15 Gun 175 | . 37 26 . 56 46 10 Cannon 35 | . . . . . 35 . Launcher 45 | . . 6 . 21 13 5 Special . | . . . . . . . Kinetic 106 | . 13 . . 32 61 . Thermal 79 | . 9 26 . 24 20 . Explosive 31 | . . 6 . 21 4 . Electromagnetic 39 | . 15 . . . 9 15 Robot Hit Streak 12 | . 4 4 . 12 8 4 Robot Miss Streak 7 | . 3 4 . 7 4 3 Penetration Max . | . . . . . . . Secondary Targets 2 | . . 1 . 1 . . Max Gunslinging Chain 1 | . . 1 . 1 . . Shots Hit Robots 158 | . 22 16 . 53 53 14 Core Hits 137 | . 11 19 . 55 35 17 Critical Kills . | . . . . . . . Critical Parts Destroyed . | . . . . . . . Critical Strikes 4 | . . . . . 1 3 Blast 1 | . . . . . 1 . Sever 3 | . . . . . . 3 Melee Attacks 11 | . . . . 1 . 10 Impact . | . . . . . . . Slashing 11 | . . . . 1 . 10 Piercing . | . . . . . . . Sneak Attacks 1 | . . . . 1 . . Combat Hostiles . | . . . . . . . Follow-up Attacks . | . . . . . . . Damage Inflicted 4442 | . 289 594 . 1427 1371 761 Guns 1379 | . 241 152 . 418 449 119 Cannons 420 | . . . . . 420 . Explosions 2332 | . 43 413 . 914 474 488 Melee 232 | . . . . 89 . 143 Ramming 79 | . 5 29 . 6 28 11 Kinetic 893 | . 67 . . 174 652 . Thermal 965 | . 110 152 . 244 257 202 Explosive 1477 | . . 413 . 914 150 . Electromagnetic 796 | . 107 . . . 284 405 Impact . | . . . . . . . Slashing 232 | . . . . 89 . 143 Piercing . | . . . . . . . Highest Corruption 2 | . . . . 2 1 . Average Corruption 1 | . . . . 2 1 . Corruption Purged . | . . . . . . . Corruption Blocked . | . . . . . . . Effects 11 | . . . . 9 2 . Message Errors 3 | . . . . 2 1 . Matter Fused 3 | . . . . 3 . . Data Loss (minor) 3 | . . . . 3 . . Data Loss (major) 1 | . . . . 1 . . Alerts 1 | . . . . . 1 . Overload Shots . | . . . . . . . Overflow Damage 46 | . . . . . 46 . Projectiles 14 | . . . . . 14 . Explosions 32 | . . . . . 32 . Melee . | . . . . . . . Knockbacks 4 | . . . . . 4 . Impact . | . . . . . . . Kinetic 4 | . . . . . 4 . Secondary . | . . . . . . . Self-Inflicted Damage 272 | . 39 26 . 115 92 . Shots 14 | . 1 2 . 5 6 . Rammed 7 | . . . . . . 7 Targets Rammed 21 | . 1 7 . 2 3 8 Kicked 14 | . 1 7 . 2 3 1 Crushed . | . . . . . . . Highest Temperature 159 | . 85 108 . 128 159 93 Average Temperature 35 | . 26 40 . 38 34 37 Received Heat Transfer 1588 | . 126 78 . 198 162 1024 Siege Activations . | . . . . . . . Martial Activations . | . . . . . . . Shielding Activations . | . . . . . . . Robots Disrupted . | . . . . . . . Combat Hostiles . | . . . . . . . Robots Corrupted . | . . . . . . . Combat Hostiles . | . . . . . . . Parts Fried 2 | . 1 . . . . 1 Impact Corruptions . | . . . . . . . Robots Melted . | . . . . . . . Combat Hostiles . | . . . . . . . Parts Melted 3 | . . 2 . 1 . . Heat Transferred 1684 | . 150 350 . 366 568 250 Parts Sabotaged . | . . . . . . . Parts Stolen . | . . . . . . . Parts Stripped . | . . . . . . . Power Chain Reactions 4 | . 1 . . . 1 2 Alert | -11 -10 -10 -9 -9 -8 -7 ------- Run | Yrd Mat Min Mat Sto Mat Fac Maximum Alert Level 1 | . . . . 1 1 . Low Security (%) 96 | 100 100 100 100 96 87 100 Level 1 3 | . . . . 3 12 . Level 2 . | . . . . . . . Level 3 . | . . . . . . . Level 4 . | . . . . . . . Level 5 . | . . . . . . . High Security . | . . . . . . . Max Security . | . . . . . . . Peak Influence 282 | . 57 109 102 209 282 127 Initial 116 | . . . 21 29 63 116 Average 56 | . 9 24 41 158 74 52 Influence Increases 2083 | . 159 364 112 516 682 250 Destroy 0b10 Robot/C 1220 | . 120 280 80 260 380 100 Destroy 0b10 Robot/NC 85 | . . . . 40 35 10 Destroy Leader 308 | . 20 50 20 106 92 20 Allied During Kill 16 | . . . 12 4 . . Disable Machine 105 | . . . . 45 45 15 Destroy Structure 139 | . 4 34 . 61 40 . Partial Spotted 60 | . . . . . 30 30 Lose Combat Pursuer 150 | . 15 . . . 60 75 Influence Decreases 2076 | . 159 309 95 437 575 501 Entered New Map 307 | . . . 34 43 88 142 Time Decay 1463 | . 129 289 61 334 427 223 Lost Part 306 | . 30 20 . 60 60 136 Squads Dispatched 9 | . 1 . 1 2 3 2 Investigation 2 | . . . . 1 1 . Extermination 1 | . . . . . . 1 Reinforcement 6 | . 1 . 1 1 2 1 Assault . | . . . . . . . Garrison . | . . . . . . . Intercept . | . . . . . . . Searches Triggered . | . . . . . . . Construction Impeded 2 | . . . . . 1 1 Haulers Reinforced . | . . . . . . . Active Scanning Responses . | . . . . . . . Cargo Convoy Interrupts . | . . . . . . . Stealth | -11 -10 -10 -9 -9 -8 -7 --------- Run | Yrd Mat Min Mat Sto Mat Fac Distress Signals 5 | . 1 . . 2 . 2 Communications Jammed . | . . . . . . . Distress Signals . | . . . . . . . Times Spotted 103 | . 12 14 3 22 33 19 Peak Tracking Total 9 | . 5 3 4 4 6 9 Tactical Retreats 7 | . 1 . . . 2 4 Traps | -11 -10 -10 -9 -9 -8 -7 ------- Run | Yrd Mat Min Mat Sto Mat Fac Traps Triggered 7 | . 1 . . 5 1 . Indirectly . | . . . . . . . Trap Hack Attempts . | . . . . . . . Triggered . | . . . . . . . Disarmed . | . . . . . . . Reprogrammed . | . . . . . . . Reused . | . . . . . . . Traps Extracted . | . . . . . . . Installed . | . . . . . . . Triggered . | . . . . . . . Machines | -11 -10 -10 -9 -9 -8 -7 ---------- Run | Yrd Mat Min Mat Sto Mat Fac Machines Disabled 7 | . . . . 3 3 1 Max in Single Turn 2 | . . . . 2 1 1 Machines Repaired . | . . . . . . . Machines Dismantled . | . . . . . . . Machines Sabotaged . | . . . . . . . Overloaded Fab Kills . | . . . . . . . Hacking | -11 -10 -10 -9 -9 -8 -7 --------- Run | Yrd Mat Min Mat Sto Mat Fac Machines Accessed 1 | . . . . . 1 . Terminals . | . . . . . . . Fabricators . | . . . . . . . Repair Stations . | . . . . . . . Recycling Units . | . . . . . . . Scanalyzers 1 | . . . . . 1 . Garrison Access . | . . . . . . . Total Hacks 3 | . . . . . 3 . Successful 3 | . . . . . 3 . Failed . | . . . . . . . Catastrophic . | . . . . . . . Database Lockouts . | . . . . . . . Manual . | . . . . . . . Terminals . | . . . . . . . Fabricators . | . . . . . . . Repair Stations . | . . . . . . . Recycling Units . | . . . . . . . Scanalyzers 3 | . . . . . 3 . Garrison Access . | . . . . . . . Terminal Hacks . | . . . . . . . Fabricator Hacks . | . . . . . . . Repair Station Hacks . | . . . . . . . Recycling Unit Hacks . | . . . . . . . Scanalyzer 3 | . . . . . 3 . Insert Component 1 | . . . . . 1 . Analyze 1 | . . . . . 1 . Retrieve Study 1 | . . . . . 1 . Garrison Access Hacks . | . . . . . . . Unauthorized Hacks . | . . . . . . . Terminals . | . . . . . . . Fabricators . | . . . . . . . Repair Stations . | . . . . . . . Recycling Units . | . . . . . . . Scanalyzers . | . . . . . . . Garrison Access . | . . . . . . . Data Cores Recovered . | . . . . . . . Used . | . . . . . . . Hacking Detections 1 | . . . . . 1 . Full Trace Events 1 | . . . . . 1 . Feedback Events . | . . . . . . . Feedback Blocked . | . . . . . . . Robot Schematics Acquired . | . . . . . . . Robots Built . | . . . . . . . Authchips . | . . . . . . . Time . | . . . . . . . Total Robot Build Rating . | . . . . . . . Part Schematics Acquired 1 | . . . . . 1 . Parts Built . | . . . . . . . Authchips . | . . . . . . . Time . | . . . . . . . Total Part Build Rating . | . . . . . . . Part Studies Acquired 1 | . . . . . 1 . Parts Repaired . | . . . . . . . Time . | . . . . . . . Parts Recycled . | . . . . . . . Recycled Matter . | . . . . . . . Retrieved Matter . | . . . . . . . Retrieved Components . | . . . . . . . Parts Scanalyzed 1 | . . . . . 1 . Part Schematics Acquired 1 | . . . . . 1 . Parts Damaged . | . . . . . . . Bothacking | -11 -10 -10 -9 -9 -8 -7 ------------ Run | Yrd Mat Min Mat Sto Mat Fac Used RIF Installer . | . . . . . . . Robots Hacked . | . . . . . . . Non-combat . | . . . . . . . Combat . | . . . . . . . Robot Hacks Applied . | . . . . . . . Relay Couplers Released . | . . . . . . . Fabnet Peak Effective % . | . . . . . . . Robots Rewired . | . . . . . . . Allies Hacked . | . . . . . . . Hacks Repelled . | . . . . . . . Allies | -11 -10 -10 -9 -9 -8 -7 -------- Run | Yrd Mat Min Mat Sto Mat Fac Total Allies 2 | . . 2 . . . . Largest Group 2 | . . 2 2 1 . . Highest-Rated Group 42 | . . 42 42 31 . . Highest-Rated Ally 31 | . . 31 31 31 . . Total Orders . | . . . . . . . Ally Attacks 21 | . . . 15 6 . . Total Damage 231 | . . . 146 85 . . Kills 6 | . . . 4 2 . . Allies Corrupted . | . . . . . . . Allies Melted . | . . . . . . . Intel | -11 -10 -10 -9 -9 -8 -7 ------- Run | Yrd Mat Min Mat Sto Mat Fac Active Infowar (turns) 3348 | . 655 1581 160 741 200 11 Terrain 377 | . . . . 214 163 . Structural 3319 | . 655 1581 160 741 171 11 Robot Analysis Total . | . . . . . . . Derelict Logs Recovered 3 | . . 3 . . . . Drone Launches . | . . . . . . . Drone Recoveries . | . . . . . . . Exploration | -11 -10 -10 -9 -9 -8 -7 ------------- Run | Yrd Mat Min Mat Sto Mat Fac Turns Passed 5137 | 69 811 1581 160 751 1169 596 Spaces Moved 2560 | 52 417 789 91 362 559 290 Core 11 | 6 . . . 2 . 3 Treads . | . . . . . . . Legs 2549 | 46 417 789 91 360 559 287 Wheels . | . . . . . . . Hover . | . . . . . . . Flight . | . . . . . . . Fastest Speed 50 | 50 120 190 120 120 120 122 Average Speed 167 | 111 164 190 173 159 170 127 Slowest Speed 500 | 120 190 190 190 450 195 500 Overloaded Moves . | . . . . . . . Propulsion Burnouts . | . . . . . . . Robots Hopped . | . . . . . . . Potential Cave-ins . | . . . . . . . Cave-ins Triggered 1 | . . . . 1 . . Exploration Rate (%) 39 | 4 59 98 15 59 31 8 Regions Visited 6 Branch Regions 2 Pre-discovered Areas . | . . . . . . . Known Exits Taken . | . . . . . . . Unknown Exits Taken 6 | 1 1 1 1 1 1 . Scrap Searched 1 | . . 1 . . . . Spaces Dug . | . . . . . . . Terrain Destroyed 147 | . 3 41 . 72 31 . Melee . | . . . . . . . Projectile 8 | . . . . . 8 . AOE 139 | . 3 41 . 72 23 . Terrain Rammed . | . . . . . . . Walls Destroyed . | . . . . . . . Machines Disabled . | . . . . . . . Actions | -11 -10 -10 -9 -9 -8 -7 --------- Run | Yrd Mat Min Mat Sto Mat Fac Total 3093 | 60 506 831 92 457 679 468 Wait 236 | . 55 8 . 23 18 132 Move 2554 | 51 416 788 90 361 558 290 Hop . | . . . . . . . Pick Up 26 | 3 6 3 . 2 10 2 Fast Attach 30 | 6 2 . . 12 9 1 Attach 26 | . 1 2 1 7 6 9 Detach 8 | . . . . 3 3 2 Swap 24 | . 1 5 1 4 11 2 Drop 15 | . . 1 . . 12 2 Fire 142 | . 24 17 . 42 49 10 Melee 11 | . . . . 1 . 10 Ram 7 | . . . . . . 7 Kick 14 | . 1 7 . 2 3 1 Crush . | . . . . . . . Escape Stasis . | . . . . . . . Rewire . | . . . . . . . Trap . | . . . . . . . Miscellaneous . | . . . . . . . Route ------- -11/Scrapyard -10/Materials (discovered 2 exits: [*Mat] / [*Min]) -10/Mines (discovered 3 exits: [*Mat x2] / *Sub) -9/Materials -9/Storage -8/Materials -7/Factory History --------- Turn | Location | Event 4 | -11/Scrapyard | Discovered new exit (range 15) 70 | -11/Scrapyard | Entered Materials 313 | -10/Materials | Build established: Mutant 476 | -10/Materials | Discovered new exit (range 5) 827 | -10/Materials | Discovered new exit (range 12) 881 | -10/Materials | Entered Mines 1006 | -10/Mines | Core integrity fell below 50% 1284 | -10/Mines | Learned Materials trap positions 1595 | -10/Mines | Discovered new exit (range 5) 1604 | -10/Mines | Received a Rocket Launcher from a helpful Derelict 1629 | -10/Mines | A weapon hastily lodged in a ceiling crevice suddenly fell to the ground 1656 | -10/Mines | Identified exit to Subcaves 2196 | -10/Mines | Learned Materials garrison access intel 2337 | -10/Mines | Discovered new exit (range 14) 2462 | -10/Mines | Entered Materials 2462 | -9/Materials | Accompanied by 2 allies 2462 | -9/Materials | Evolved 2 slots: Propulsion x1, Utility x1 2463 | -9/Materials | Loaded intel: 11 trap records 2467 | -9/Materials | Led the pair of lost Derelicts to an unsafe place 2611 | -9/Materials | Discovered new exit (range 5) 2622 | -9/Materials | Entered Storage 2622 | -9/Storage | Accompanied by 1 ally 2685 | -9/Storage | Crushed by falling debris 2685 | -9/Storage | Core integrity fell below 50% 2735 | -9/Storage | Lost 3 parts (1p1n1w) 3059 | -9/Storage | Lost 3 parts (1p1n1u) 3293 | -9/Storage | Discovered new exit (range 10) 3358 | -9/Storage | Core integrity fell below 20% 3373 | -9/Storage | Entered Materials 3373 | -8/Materials | Evolved 2 slots: Power x1, Utility x1 3374 | -8/Materials | Loaded intel: 1 garrison access location 3485 | -8/Materials | Build established: Scavenger-Mutant 3671 | -8/Materials | Lost 3 parts (1n2u) 4292 | -8/Materials | Build established: Mutant 4505 | -8/Materials | Discovered new exit (range 13) 4542 | -8/Materials | Entered Factory 4542 | -7/Factory | Evolved 2 slots: Propulsion x1, Utility x1 4811 | -7/Factory | Build established: Scavenger-Mutant 5105 | -7/Factory | Core integrity fell below 50% 5126 | -7/Factory | Core integrity fell below 20% 5133 | -7/Factory | Lost 12 parts (1p4n5u2w) 5138 | -7/Factory | Destroyed by G-47 Trooper with Particle Gun Last Messages --------------- 05044_ M-13 Machinist fits Backup Laser I on G-47 Trooper. 05046_ M-13 Machinist fits Backup Propulsion I on G-47 Trooper. 05050_ Titanium Leg destroyed. 05050_ Acquired 15 matter. 05051_ R-06 Scavenger collects Particle Gun. 05054_ Hardlight Generator destroyed. 05055_ R-06 Scavenger collects Aluminum Leg. 05061_ Reaction Control System destroyed. 05067_ G-47 Trooper Aluminum Leg severed. 05068_ Ripper destroyed. 05069_ Slammed into G-47 Trooper. 05073_ ALERT: Potential suspicious activity detected, Programmers report to Factory Zone 2F. 05073_ Slammed into G-47 Trooper. 05089_ Aluminum Leg destroyed. 05090_ Slammed into G-47 Trooper. 05100_ Structural Scanner destroyed. 05102_ Com. Battery destroyed. 05121_ Critical hit (Burn: +37). 05135_ R-06 Scavenger collects Aluminum Leg. Map ----- +----------------------------------------------------+ | ?????????????????????????????????????????????????? | | ?????????????????????????????????????????????????? | | ?????????????????????????????????????????????????? | | ?????????????????????????????????????????????????? | | ?????????????????????????????????????????????????? | | ?????????????????????????????????????????????????? | | ?????????????????????????????????????????????????? | | ?????????????????????????????????##??????????????? | | ????????????????????????????????? ??????????????? | | ????????????????????????????????? ! ?????????????? | | ???????????????????????????????? ?????????????? | | ????????????????????????????????"" "?????????????? | | ???????????????????????????# ???"" """??#????????? | | ???????????????????????????# """" """" #????????? | | ???????????????????????????# """" """" #????????? | | ???????????????????????????# """" """" #????????? | | ???????????????????????????# """" """" #????????? | | ???????????????????????????# #????????? | | ???????????????????????????# "T" !#????????? | | ???????????????????????????# """ = #????????? | | ???????????????????????????#######/####### #?????? | | ???????????????????????????????# #?????? | | ???????????????????????????????# #####???????? | | ?????????????????????## ###### # ##??????????? | | ?????????????????????## ######## ##??????????? | | ?????????????????????## g@ggYpr ##??????????? | | ?????????????????????## ######## ##??????????? | | ?????????????????????##/######## ############# | | ???????????????????????????????# | | ???????????????????????????????# | | ???????????????????????????????# % | | ???????????????????????????????# % % """ """ "" | | ???????????????????????????????# %%""" """ "" | | ???????????????????????????????# %% """ """ "" | | ???????????????????????????????# " """ """ "" | | ???????????????????????????????# % % | | ???????????????????????????????# % | | ???????????????????????????????# | | ???????????????????????????????# | | ???????????????????????????????# | | ???????????????????????????????####+############## | | ???????????????????????????????# #????????# | | ???????????????????????????????# #????????# | | ???????????????????????????????# #????????# | | ???????????????????????????????# """ #????????# | | ???????????????????????????????# """ #????????# | | ???????????????????????????????# """ #????????# | | ???????????????????????????????# "" #????????# | | ???????????????????????????????# "" #????????# | | ???????????????????????????????# #????????# | +----------------------------------------------------+ Best States ------------- Heat Dissipation 34 Energy Generation 21 Energy Capacity 415 Matter Stores 300 Matter Capacity 300 Sight Range 16 Terrain Scan Range 16 Terrain Scan Density 10 Armor Coverage 225 Resistance: TH 10 Utility Shielding 66 Evasion (%) 63 Recoil Reduction 8 Authchip Count 1 Item Schematics ----------------- Structural Scanner | -8/Materials | Scanalyzed Robot Schematics ------------------ None Fabricated ------------ Nothing Repaired ---------- Nothing Studied --------- Grenade Launcher | -8/Materials | Hacked Alien Tech Used ----------------- None Achievements -------------- Item+ Let's See Who's Tougher Unlikely Earthworm Use The Force Challenges ------------ None Game ------ Seed CloakingFluxBlade Manual? 0 Play Time 01:03:49 Cumulative 5.4 hours Start 2025.11.20 @ 09:17:28 End 2025.11.28 @ 22:21:06 Sessions 7 Manual Loads 0 Difficulty Rogue Special Mode None Game No. 14 Rogue 13 Adventurer 1 Explorer 0 Win Type - Total 0 Types 0/0/0/0/0/0/0/0/0/0 Lore% 0 Gallery% 8 Achievement% 7 Wizard Run 0 Options --------- Layout 0 ASCII 0 Keyboard 0 Movement Vi Keybinds 1 Fullscreen 1 Font 36/Smallcaps Map View 76x50 Zoom Use 0% Tactical HUD 1 Map Filters NONE Filters NONE Steam 1 RUN: 87fc47e5-3e94-468c-bebd-36d5ebcf29a0